[Event "44th Chess Olympiad Women 2022"]
[Site "Chennai"]
[Date "2022.08.01"]
[Round "4.7"]
[White "Ciolacu, Alessia-Mihaela"]
[Black "Klek, Hanna Marie"]
[Result "1-0"]
[WhiteElo "2163"]
[BlackElo "2366"]
[Annotator "TA"]
[PlyCount "85"]
[EventDate "2022.??.??"]
[TimeControl "60"]

{[%evp 10,85,28,-4,28,0,7,0,4,-21,4,-56,-35,-38,-6,-43,62,27,93,95,145,143,135,
145,193,186,197,186,186,187,188,200,178,187,243,183,189,193,189,161,156,157,
157,108,123,118,120,117,124,139,167,155,160,133,131,125,140,142,136,108,106,
105,220,214,259,233,408,403,241,235,12841,12842,12842,12843,12842,12843,12845,
12846]} 1. d4 {[%emt 0:00:05]} Nf6 {[%emt 0:00:06]} 2. c4 {[%emt 0:00:15]} e6 {
[%emt 0:00:06]} 3. Nc3 {[%emt 0:00:14]} Bb4 {[%emt 0:00:06]} 4. f3 {[%emt 0:00:
00]} c5 {[%emt 0:00:12]} 5. d5 {[%emt 0:00:20]} d6 {[%emt 0:00:10]} 6. e4 {
[%emt 0:08:59]} b5 {[%emt 0:00:20] E20: Nimzo-Indian: 4 g3 and 4 f3.} 7. dxe6 {
[%emt 0:18:29]} Bxe6 {[%emt 0:01:04]} 8. Bf4 {[%emt 0:00:15][%cal Yc1f4,Yf4d6,
Yd6c5,Yc5f2]} O-O {[%emt 0:00:42] The position is equal.} 9. Bxd6 {[%emt 0:16:
35]} Re8 {[%emt 0:00:46]} 10. Nge2 {[%emt 0:00:47]} (10. Bf4 $11) 10... Bxc4
$15 {[%emt 0:08:46][%cal Yf6e4]} 11. a3 {[%emt 0:01:39]} Ba5 {[%emt 0:18:30]
And now ...b4 would win.} 12. Bxc5 {[%emt 0:03:44] [#]} Nfd7 $146 {[%emt 0:01:
32]} (12... Nbd7 $15 13. Bf2 Rc8) ({Predecessor:} 12... Nbd7 13. Bd4 Qc7 14. b4
Bb6 15. Rc1 Qb7 16. Nf4 Nxe4 17. fxe4 Rxe4+ 18. Nxe4 Qxe4+ {0-1 (25) Liu,Z 
(2163)-Wang,S (2203) Hangzhou 2018}) 13. Bf2 {[%emt 0:05:22]} Qf6 {[%emt 0:06:
01]} (13... Nc6 $11 {keeps the balance.}) 14. Nd4 $16 {[%emt 0:00:00][%cal
Ye2d4,Yd4f5,Yf5e7,Ye7d5]} Ne5 {[%emt 0:10:35]} (14... Bxc3+ $142 15. bxc3 Bxf1
16. Kxf1 (16. Rxf1 Nc6 $14) 16... a6) 15. Bxc4 {[%emt 0:01:52]} bxc4 {[%emt 0:
00:34]} 16. O-O {[%emt 0:00:59]} Nbd7 {[%emt 0:00:00]} (16... Bxc3 $16 {
keeps fighting.} 17. bxc3 Qa6) 17. Nd5 $18 {[%emt 0:00:00]} Qa6 {[%emt 0:02:16]
} 18. Nf5 {[%emt 0:05:49]} Nf6 {[%emt 0:05:41] [#]} 19. Nfe7+ {[%emt 0:02:08]}
Kh8 {[%emt 0:00:45]} 20. Qa4 {[%emt 0:01:16]} Nxd5 {[%emt 0:01:23]} 21. Nxd5 {
[%emt 0:00:14]} Re6 {[%emt 0:01:43]} (21... Rab8 $142 22. Rac1 (22. Nc7 Nxf3+
23. gxf3 Qg6+ 24. Kh1 Bxc7 $11) 22... Rec8) 22. b3 {[%emt 0:07:48]} Bd8 {
[%emt 0:06:44]} 23. Qxa6 {[%emt 0:03:34]} Rxa6 {[%emt 0:00:00]} 24. f4 {
[%emt 0:02:27]} Nd3 {[%emt 0:01:00]} 25. bxc4 {[%emt 0:00:10]} Ra4 {[%emt 0:03:
16] Inhibits Nb4.} 26. Rfd1 {[%emt 0:11:43]} ({White should try} 26. Be3) 26...
Nxf2 $16 {[%emt 0:00:26]} 27. Kxf2 {[%emt 0:00:02]} Rxc4 {[%emt 0:00:09]} 28.
Kf3 {[%emt 0:00:31]} g6 {[%emt 0:03:13]} 29. Rac1 {[%emt 0:00:00]} Ra4 {
[%emt 0:00:39]} 30. Rd3 {[%emt 0:00:42]} Kg7 {[%emt 0:00:42]} 31. g4 {[%emt 0:
02:31]} h6 {[%emt 0:00:38]} 32. Rb1 {[%emt 0:01:31]} Bb6 {[%emt 0:00:00]} 33.
e5 {[%emt 0:00:58]} Rd8 {[%emt 0:01:11]} 34. Rb4 {[%emt 0:00:49]} Ra5 {[%emt 0:
02:55]} 35. Ke4 $36 {[%emt 0:00:10] Keeping Black busy.} Bc5 {[%emt 0:01:28] 
[#]} (35... Rc8 $16 {might work better.} 36. Nxb6 axb6 37. Rxb6 Rc4+ 38. Kf3
Rca4) 36. Rb7 $1 $18 {[%emt 0:00:44] Threatens to win with e6.} Ra4+ {[%emt 0:
00:25]} 37. Kf3 {[%emt 0:00:08] Hoping for e6. Active counter play!} Kf8 $2 {
[%emt 0:00:54]} (37... Ra6 38. f5 Kf8) 38. f5 {[%emt 0:00:00] Strongly
threatening e6.} gxf5 {[%emt 0:02:35]} (38... Ra6 {was necessary.} 39. f6 Re6)
39. gxf5 {[%emt 0:00:24] Black must now prevent e6.} Bxa3 $2 {[%emt 0:02:43]} (
39... Rxa3 40. Rxa3 Rxd5) 40. e6 {[%emt 0:00:49] White is clearly winning.}
fxe6 {[%emt 0:01:35]} 41. fxe6 {[%emt 0:30:18] Rf7+ would kill now.} Rxd5 {
[%emt 0:33:00]} 42. Rxd5 {[%emt 0:00:00][%cal Rd5d8]} Ke8 {[%emt 0:00:00]
Prevents Rd8+.} 43. Rdd7 {[%emt 0:00:00] Weighted Error Value: White=0.13 
(very precise) /Black=0.31} 1-0

[Event "44th Chess Olympiad Women 2022"]
[Site "Chennai"]
[Date "2022.08.01"]
[Round "4.7"]
[White "Schneider, Jana"]
[Black "Lehaci, Miruna-Daria"]
[Result "1-0"]
[WhiteElo "2342"]
[BlackElo "2193"]
[Annotator "TA"]
[PlyCount "113"]
[EventDate "2022.??.??"]
[TimeControl "60"]

{[%evp 17,113,0,17,11,8,0,20,17,20,20,20,18,21,22,23,20,16,-6,0,0,-11,-50,27,
-9,0,0,35,34,44,53,44,52,47,47,92,47,83,8,52,0,69,6,79,48,583,589,573,557,594,
595,989,564,652,658,2452,801,5306,498,580,301,303,303,292,298,285,259,288,193,
303,303,303,301,293,260,450,450,448,445,410,318,279,232,282,282,292,181,320,
308,515,455,29991,29979,29979,29980,29980,29980,29973,29965]} 1. e4 {[%emt 0:
00:00]} e6 {[%emt 0:00:07]} 2. d4 {[%emt 0:00:08]} d5 {[%emt 0:00:04]} 3. e5 {
[%emt 0:00:05]} c5 {[%emt 0:00:04]} 4. c3 {[%emt 0:00:07]} Nc6 {[%emt 0:00:05]}
5. Nf3 {[%emt 0:00:06]} Bd7 {[%emt 0:00:05]} 6. Be2 {[%emt 0:00:08]} Nge7 {
[%emt 0:00:14]} 7. Na3 {[%emt 0:00:12]} cxd4 {[%emt 0:00:47]} 8. cxd4 {[%emt 0:
00:00]} Nf5 {[%emt 0:01:00]} 9. Nc2 {[%emt 0:00:16]} Be7 {[%emt 0:00:57]} 10.
O-O {[%emt 0:01:31] C02: French: Advance Variation.} O-O {[%emt 0:01:24] 10...
h5 is vanishing.} 11. Bd3 {[%emt 0:04:40]} Rc8 {[%emt 0:04:29]} 12. Re1 {
[%emt 0:12:29] [#] The position is equal.} a6 $146 {[%emt 0:04:45]} ({
Predecessor:} 12... Na5 13. Rb1 a6 14. b3 Nc6 15. Bd2 a5 16. a3 Na7 17. b4 Bb5
18. Bxf5 exf5 19. bxa5 {1-0 (63) Verlinde,P (2214)-Leenders,C (2302) ICCF
email 2015}) 13. Bd2 {[%emt 0:08:50]} h6 {[%emt 0:08:23]} 14. Bc3 {[%emt 0:00:
00]} b5 {[%emt 0:10:25]} 15. a3 {[%emt 0:06:04]} Qb6 {[%emt 0:04:54]} 16. Qe2 {
[%emt 0:05:47]} Rc7 {[%emt 0:06:28]} 17. Rad1 {[%emt 0:03:17]} a5 {[%emt 0:00:
00]} 18. Bd2 {[%emt 0:10:41]} b4 {[%emt 0:09:49]} 19. axb4 {[%emt 0:00:29]}
axb4 {[%emt 0:01:28]} (19... Nxb4 $15 20. Nxb4 Bxb4) 20. b3 {[%emt 0:00:44]}
Bc8 {[%emt 0:10:41]} 21. Kh1 {[%emt 0:12:20]} Rb7 {[%emt 0:08:41]} 22. g4 {
[%emt 0:05:24]} Nfxd4 {[%emt 0:02:34]} 23. Nfxd4 {[%emt 0:04:13]} Nxd4 {
[%emt 0:00:10]} 24. Nxd4 {[%emt 0:00:57]} Qxd4 {[%emt 0:00:04] [#]} 25. Bxh6 $1
{[%emt 0:05:37][%cal Yd3h7]} Qb6 {[%emt 0:00:59]} (25... gxh6 $2 26. Bh7+ $1
Kxh7 27. Rxd4 $18) (25... Qa7 26. Be3) 26. Be3 {[%emt 0:02:27]} Qd8 {[%emt 0:
03:50]} 27. Qf3 {[%emt 0:01:10]} (27. Bd4 $1 $16) 27... g6 {[%emt 0:00:00]} (
27... d4 $5 {[%cal Rd4e3]} 28. Qh3 (28. Qe4 g6 $11) 28... g6 $11) 28. Qh3 {
[%emt 0:00:46]} ({White should try} 28. Bd4 $14) 28... Re8 {[%emt 0:02:29]} (
28... d4 $11 29. Be4 Rd7) 29. f4 {[%emt 0:01:13] 0x0.0013ba1922efdp-1022s more
active pieces.} (29. Kg1 $14) 29... Bh4 {[%emt 0:01:43]} (29... d4 $1 $11 {
keeps the balance.} 30. Be4 Bc5) 30. Rf1 $36 {[%emt 0:02:25] g5 is the strong
threat. White has the initiative.} (30. Re2 $5 {[%cal Rg4g5]}) 30... Be7 {
[%emt 0:03:08] This costs Black the game.} (30... d4 $14 31. Be4 Rd7) 31. f5
$18 {[%emt 0:00:19]} exf5 {[%emt 0:00:03]} 32. gxf5 {[%emt 0:00:00]} Bf8 {
[%emt 0:00:33]} 33. Qg3 {[%emt 0:01:28]} d4 {[%emt 0:02:36]} 34. Be4 {[%emt 0:
00:27] Prevents Qd5.} Bg7 {[%emt 0:00:43]} 35. Rxd4 {[%emt 0:00:00]} Rd7 {
[%emt 0:00:21] [#]} 36. Rxd7 {[%emt 0:02:54]} (36. fxg6 $142 $1 Bb7 (36... f5
37. Qh3) 37. Bxb7 fxg6 38. Qxg6 $1 Rxb7 39. Rxd8 Rxd8 40. e6 Rc8 41. Bh6) 36...
Bxd7 {[%emt 0:00:36]} 37. f6 {[%emt 0:00:31]} (37. fxg6 $142 fxg6 38. Qxg6)
37... Bb5 {[%emt 0:00:34]} 38. Rg1 {[%emt 0:01:11]} (38. fxg7 $2 Bxf1 39. Bf3
Kxg7 $19) 38... Bd3 {[%emt 0:00:33]} 39. Bxd3 {[%emt 0:00:39]} Qxd3 {[%emt 0:
00:19]} 40. fxg7 {[%emt 0:00:11] Strongly threatening Re1.} Qe4+ {[%emt 0:01:
25]} 41. Rg2 {[%emt 0:30:18]} Rxe5 {[%emt 0:02:38]} 42. Bc1 {[%emt 0:00:00]}
Re8 {[%emt 0:02:33]} (42... Rf5 {was called for.} 43. Qb8+ Kxg7 44. Bb2+ f6 45.
Qc7+ Kf8) 43. h3 {[%emt 0:00:00] Threatens to win with Bb2.} Qb1 {[%emt 0:02:
18] [#]} 44. Rg1 {[%emt 0:00:00][%cal Yg2g1,Yg1a1,Ya1a6,Ya6b6,Yb6c6,Yc6c2,
Yc2e2,Ye2e6,Ye6g6]} Qe4+ {[%emt 0:01:25] [#]} 45. Qg2 $1 {[%emt 0:00:00]
Hoping for Bb2.} Qd3 $2 {[%emt 0:00:21]} (45... Kxg7 {was worth a try.} 46.
Qxe4 Rxe4) 46. Bb2 {[%emt 0:00:00]} Qxb3 {[%emt 0:00:59]} 47. Ra1 {[%emt 0:00:
00]} Kh7 {[%emt 0:02:50]} 48. Ra6 {[%emt 0:00:00]} Qd3 {[%emt 0:00:00]} 49. Rb6
{[%emt 0:00:00]} ({But not} 49. Ra1 $6 Kg8 50. Bf6 Qe3 $18) 49... Kg8 {[%emt 0:
05:37]} (49... Re2 50. g8=Q+ Kxg8 51. Qa8+) 50. Rc6 {[%emt 0:00:00]} (50. Rxb4
{is a self mate.} Re1+ 51. Kh2 Qd6+ 52. Qg3 Re2+ 53. Kh1 Qxg3) 50... Qd1+ {
[%emt 0:03:00]} 51. Kh2 {[%emt 0:00:15] And now Rc2 would win.} Qd3 {[%emt 0:
00:15]} (51... b3 {keeps fighting.} 52. Qf2 Qe2) 52. Rc2 {[%emt 0:00:00]} Qb3
$2 {[%emt 0:03:22]} (52... f6 {is a better defense.} 53. Rd2 Qc4) 53. Re2 {
[%emt 0:02:11]} Rb8 {[%emt 0:02:13]} (53... Qa4 $18 54. Rf2 Qa7) 54. Qe4 {
[%emt 0:00:30] White mates.} Qe6 {[%emt 0:02:05]} 55. Qxe6 {[%emt 0:00:23]}
fxe6 {[%emt 0:00:05]} 56. Rxe6 {[%emt 0:00:04]} Rc8 {[%emt 0:00:39]} 57. Rxg6 {
[%emt 0:00:32] Weighted Error Value: White=0.43/Black=0.62} 1-0

[Event "44th Chess Olympiad Women 2022"]
[Site "Chennai"]
[Date "2022.08.01"]
[Round "4.8"]
[White "Balabayeva, Xeniya"]
[Black "Bayarmaa, Bayarjargal"]
[Result "1-0"]
[WhiteElo "2198"]
[BlackElo "2171"]
[Annotator "NA RC"]
[PlyCount "111"]
[EventDate "2022.??.??"]
[TimeControl "60"]

1. e4 {[%emt 0:00:03]} c5 {[%emt 0:00:05]} 2. Nf3 {[%emt 0:00:13]} d6 {[%emt 0:
00:00]} 3. Bb5+ {[%emt 0:00:21]} Bd7 {[%emt 0:00:06]} 4. Bxd7+ {[%emt 0:00:08]}
Qxd7 {[%emt 0:00:05]} 5. O-O {[%emt 0:00:30]} Nc6 {[%emt 0:00:22]} 6. c3 {
[%emt 0:00:20]} Nf6 {[%emt 0:00:50]} 7. Qe2 {[%emt 0:00:24]} e6 {[%emt 0:01:05]
} 8. d4 {[%emt 0:00:11]} cxd4 {[%emt 0:00:20]} 9. cxd4 {[%emt 0:00:07]} d5 {
[%emt 0:00:12]} 10. e5 {[%emt 0:00:09]} Ne4 {[%emt 0:00:08]} 11. Nbd2 {[%emt 0:
00:00]} Nxd2 {[%emt 0:00:17]} 12. Bxd2 {[%emt 0:00:08]} Be7 {[%emt 0:00:35]}
13. g3 {[%emt 0:03:16]} O-O {[%emt 0:00:43]} 14. Kg2 {[%emt 0:00:50]} Rac8 {
[%emt 0:03:32]} 15. Rad1 {[%emt 0:18:21]} Bd8 {[%emt 0:08:11]} 16. h4 {[%emt 0:
00:00]} Re8 {[%emt 0:02:45]} 17. h5 {[%emt 0:13:57]} h6 {[%emt 0:21:24]} 18.
Bf4 {[%emt 0:06:57]} Qe7 {[%emt 0:23:16]} 19. a3 {[%emt 0:06:37]} Na5 {[%emt 0:
00:00]} 20. Nh2 {[%emt 0:05:38]} Rc6 {[%emt 0:04:37]} 21. Ng4 {[%emt 0:06:45]}
Qf8 {[%emt 0:05:11]} 22. Rd3 {[%emt 0:03:46]} Be7 {[%emt 0:03:59]} 23. Rf3 {
[%emt 0:10:00]} Kh8 {[%emt 0:11:59]} 24. Rc1 {[%emt 0:07:25]} Rxc1 {[%emt 0:00:
00]} 25. Bxc1 {[%emt 0:00:01]} Rc8 {[%emt 0:00:07]} 26. Bf4 {[%emt 0:01:31]} a6
{[%emt 0:01:05]} 27. a4 {[%emt 0:02:23]} Rc4 {[%emt 0:00:52]} 28. Qd2 {[%emt 0:
00:00]} Bb4 {[%emt 0:00:12]} 29. Qe3 {[%emt 0:02:50]} Rc7 {[%emt 0:02:23]} 30.
Qe2 {[%emt 0:00:00]} Nc6 {[%emt 0:02:03]} 31. Qe3 {[%emt 0:00:00]} Ne7 {
[%emt 0:00:28]} 32. Qb3 {[%emt 0:00:00]} Nf5 {[%emt 0:00:07]} 33. Rd3 {[%emt 0:
00:00]} Rc4 {[%emt 0:01:42]} 34. Qd1 {[%emt 0:00:00]} Qc8 {[%emt 0:00:32]} 35.
Ne3 {[%emt 0:00:35]} Nxe3+ {[%emt 0:00:50]} 36. Rxe3 {[%emt 0:00:35]} Qc6 {
[%emt 0:00:58]} 37. Rf3 {[%emt 0:00:27]} Kg8 {[%emt 0:01:03]} 38. g4 {[%emt 0:
00:00]} Be7 {[%emt 0:00:25]} 39. Be3 {[%emt 0:00:29]} Rxa4 {[%emt 0:00:53]} 40.
g5 {[%emt 0:00:29]} hxg5 {[%emt 0:01:04]} 41. Rg3 {[%emt 0:30:38]} Kf8 {
[%emt 0:13:32]} 42. Bxg5 {[%emt 0:00:00]} Bxg5 {[%emt 0:02:39]} 43. Rxg5 {
[%emt 0:00:00]} Qc4 {[%emt 0:02:52]} 44. Rg4 {[%emt 0:00:00]} Rb4 {[%emt 0:00:
00]} 45. h6 {[%emt 0:00:00]} gxh6 {[%emt 0:00:44]} 46. Qd2 {[%emt 0:00:00]} Ke7
{[%emt 0:04:26]} 47. Qf4 {[%emt 0:00:00]} Qc8 {[%emt 0:02:48]} 48. Qf6+ {
[%emt 0:00:00]} Kd7 {[%emt 0:00:08]} 49. Qxf7+ {[%emt 0:00:00]} Kc6 {[%emt 0:
00:00]} 50. Rg8 {[%emt 0:00:00]} Qd7 {[%emt 0:00:21]} 51. Qf8 {[%emt 0:00:00]}
Kb5 {[%emt 0:00:13]} 52. Qc5+ {[%emt 0:00:00]} Ka4 {[%emt 0:00:05]} 53. Rg3 {
[%emt 0:00:00]} Rb3 {[%emt 0:01:28]} 54. Qc2 {[%emt 0:00:00]} Qb5 {[%emt 0:00:
00]} 55. f4 {[%emt 0:00:00]} a5 {[%emt 0:03:00]} 56. f5 {[%emt 0:00:00]} 1-0

[Event "44th Chess Olympiad Women 2022"]
[Site "Chennai"]
[Date "2022.08.01"]
[Round "4.8"]
[White "Enkhtuul, Altan-Ulzii"]
[Black "Assaubayeva, Bibisara"]
[Result "1/2-1/2"]
[WhiteElo "2267"]
[BlackElo "2436"]
[Annotator "TA"]
[PlyCount "56"]
[EventDate "2022.??.??"]
[TimeControl "60"]

{[%evp 12,56,8,0,6,12,14,7,11,8,15,15,19,12,18,22,13,0,0,0,0,0,0,0,0,0,0,7,10,
0,33,0,22,0,0,0,35,10,54,0,0,0,44,0,0,0,58]} 1. d4 {[%emt 0:00:03]} Nf6 {
[%emt 0:00:19]} 2. Bf4 {[%emt 0:00:06]} d5 {[%emt 0:02:34]} 3. e3 {[%emt 0:00:
00]} e6 {[%emt 0:01:13]} 4. Nd2 {[%emt 0:05:17]} c5 {[%emt 0:03:02]} 5. c3 {
[%emt 0:01:32]} Nc6 {[%emt 0:02:05]} 6. Ngf3 {[%emt 0:00:32]} Be7 {[%emt 0:00:
00] 6...Nh5 is a critical line.} 7. h3 {[%emt 0:01:16]} Bd6 {[%emt 0:00:43]
D02:1 d4 d5 2 Nf3 sidelines, including 2...Nf6 3 g3 and 2...Nf6 3 Bf4.} 8. dxc5
{[%emt 0:11:40]} Bxc5 {[%emt 0:00:17]} 9. Be2 {[%emt 0:00:06]} Bd6 {[%emt 0:02:
11]} 10. Bxd6 {[%emt 0:00:57]} Qxd6 {[%emt 0:00:01] [#]} 11. c4 $146 {[%emt 0:
07:05]} ({Predecessor:} 11. O-O O-O 12. c4 Rd8 13. cxd5 Qxd5 14. Qc2 Bd7 15.
Rfd1 Rac8 16. Nc4 Qc5 17. a3 {1-0 (70) Graf,A (2572)-Pajeken,J (2323) Germany
2020}) 11... d4 {[%emt 0:12:12]} 12. exd4 {[%emt 0:01:11]} Nxd4 {[%emt 0:00:08]
} 13. O-O {[%emt 0:01:34]} O-O {[%emt 0:13:32]} 14. Nb3 {[%emt 0:00:00][%cal
Yd2b3,Yb3d4,Yd4b5]} Nxe2+ {[%emt 0:03:01]} 15. Qxe2 {[%emt 0:00:07]} b6 {
[%emt 0:01:08]} 16. Rfd1 {[%emt 0:01:50]} Qc7 {[%emt 0:00:00]} 17. Rac1 {
[%emt 0:10:57]} Bb7 {[%emt 0:06:39]} 18. Nbd4 {[%emt 0:02:43]} Ne4 {[%emt 0:04:
31]} 19. Nb5 {[%emt 0:05:02]} Qf4 {[%emt 0:02:03]} 20. Qe3 {[%emt 0:02:44]} Qf6
{[%emt 0:06:12]} 21. Qd4 {[%emt 0:06:43]} Qg6 {[%emt 0:00:00]} 22. Ne5 {
[%emt 0:00:31]} Qg5 {[%emt 0:02:15][%cal Ye4c3]} 23. Nf3 $1 {[%emt 0:00:11]
Pair of Knights!} Qh5 {[%emt 0:07:14]} 24. b4 {[%emt 0:00:07]} Qg6 {[%emt 0:03:
45]} 25. Ne5 {[%emt 0:01:21]} Qg5 {[%emt 0:00:10][%cal Ye4c3] [#] Strongly
threatening ...Nc3!} 26. Nf3 {[%emt 0:00:23]} Qg6 {[%emt 0:00:05]} 27. Ne5 {
[%emt 0:02:04]} Qg5 {[%emt 0:00:32][%cal Ye4c3] White must now prevent ...Nc3!}
28. Nf3 {[%emt 0:00:07]} Qg6 {[%emt 0:01:27] Weighted Error Value: White=0.09 
(flawless) /Black=0.08 (flawless)} 1/2-1/2

[Event "44th Chess Olympiad Women 2022"]
[Site "Chennai"]
[Date "2022.08.01"]
[Round "4.8"]
[White "Munkhzul, Turmunkh"]
[Black "Nakhbayeva, Guliskhan"]
[Result "1/2-1/2"]
[WhiteElo "2277"]
[BlackElo "2329"]
[Annotator "TA"]
[PlyCount "165"]
[EventDate "2022.??.??"]
[TimeControl "60"]

{[%evp 22,164,12,0,0,0,4,11,7,0,0,0,33,41,39,33,29,31,18,0,4,13,18,20,56,-16,
17,-29,-27,-27,-31,-41,-18,-226,-161,-163,-164,-257,-250,-443,-387,-439,-432,
-516,-514,-508,-508,-798,-814,-772,-740,-835,-829,-933,-947,-716,-383,-372,
-276,-276,745,564,768,12,12,12,12,12,12,10,10,9,126,9,9,9,9,9,9,9,12,0,8,0,8,8,
8,8,8,8,8,8,8,8,8,8,8,8,8,8,8,8,8,8,8,8,8,8,8,8,8,8,8,8,8,8,8,8,8,8,8,8,8,8,8,
8,8,0,0,0,0,0,0,0,0,0,0,0,0,0,0,0,0,0,0]} 1. e4 {[%emt 0:00:03]} e6 {[%emt 0:
00:00]} 2. d4 {[%emt 0:00:26]} d5 {[%emt 0:00:09]} 3. Nc3 {[%emt 0:00:35]} Nf6
{[%emt 0:00:10]} 4. Bg5 {[%emt 0:00:11]} Be7 {[%emt 0:00:59]} 5. e5 {[%emt 0:
00:00]} Nfd7 {[%emt 0:00:05]} 6. Bxe7 {[%emt 0:00:36]} Qxe7 {[%emt 0:00:06]} 7.
f4 {[%emt 0:00:26]} a6 {[%emt 0:00:31]} 8. Nf3 {[%emt 0:00:34]} c5 {[%emt 0:00:
00]} 9. Qd2 {[%emt 0:01:05]} Nc6 {[%emt 0:01:13]} 10. dxc5 {[%emt 0:01:21]}
Nxc5 {[%emt 0:01:33]} 11. Bd3 {[%emt 0:00:33]} b5 {[%emt 0:05:28]} 12. O-O {
[%emt 0:02:43]} b4 {[%emt 0:07:33] Strongly threatening ...Qa7. C14: French:
Classical System: 4 Bg5 Be7 main line.} 13. Ne2 {[%emt 0:03:01]} O-O {[%emt 0:
00:00]} 14. Qe3 {[%emt 0:02:27][%cal Yd3h7]} h6 {[%emt 0:05:31]} 15. Ned4 {
[%emt 0:01:02]} Nxd4 {[%emt 0:07:40]} 16. Nxd4 {[%emt 0:00:29] [#]} Nxd3 $146 {
[%emt 0:03:53]} ({Predecessor:} 16... Bd7 17. Rf3 Nxd3 18. cxd3 Rac8 19. g4
Rfe8 20. Raf1 Rc5 21. Rg3 Ra5 22. Ra1 Rc8 {1-0 (36) Kriksciunas,B (2305)
-Voveris,G (2185) ICCF email 2009}) 17. cxd3 {[%emt 0:02:55]} Bd7 {[%emt 0:00:
00][%cal Yc8d7,Yd7b5,Yb5c6,Yc6d5]} 18. Rac1 {[%emt 0:05:05]} Rfc8 {[%emt 0:02:
50]} 19. Nb3 {[%emt 0:06:02]} Bb5 {[%emt 0:01:55]} 20. Qd4 {[%emt 0:00:00]} f6
{[%emt 0:07:50]} 21. Qe3 {[%emt 0:20:40]} fxe5 {[%emt 0:05:20]} 22. fxe5 {
[%emt 0:00:16]} d4 {[%emt 0:04:38]} 23. Qh3 {[%emt 0:08:31]} (23. Qxd4 Rxc1 24.
Nxc1 (24. Rxc1 Rd8 $11) 24... Rc8 $11) (23. Rxc8+ $14 Rxc8 24. Nxd4) 23... Kh8
{[%emt 0:04:29]} 24. Kh1 {[%emt 0:09:14]} (24. Nxd4 $142 Rxc1 25. Rxc1) 24...
Bc6 {[%emt 0:11:07]} 25. Nxd4 {[%emt 0:08:30]} Bd5 {[%emt 0:00:18]} 26. Qg4 {
[%emt 0:00:35]} a5 {[%emt 0:02:42]} 27. Nf3 $2 {[%emt 0:01:28]} (27. Rxc8+ $11
{and White is okay.} Rxc8 28. h3) 27... Bxa2 {[%emt 0:05:25]} 28. Ra1 {[%emt 0:
08:45]} Bd5 {[%emt 0:03:48] aiming for ...Rc2.} 29. Rf2 {[%emt 0:00:00]} (29.
Nh4 $142 Qg5 30. Qxg5 hxg5 31. Ng6+ Kh7 32. Ne7) 29... Kg8 {[%emt 0:00:00]} 30.
Raf1 $2 {[%emt 0:01:21]} (30. h3) 30... Rf8 {[%emt 0:02:33]} 31. h3 {[%emt 0:
03:52]} a4 {[%emt 0:00:39]} 32. Rc1 {[%emt 0:03:18]} a3 {[%emt 0:00:00]} 33.
bxa3 {[%emt 0:02:13]} bxa3 {[%emt 0:00:01][%cal Yb4a3,Ya3a2]} 34. Rfc2 {
[%emt 0:03:09]} (34. Kh2 $142 a2 35. Ra1) 34... a2 $19 {[%emt 0:00:00]} 35. Ra1
{[%emt 0:00:48]} Rfc8 {[%emt 0:04:55]} 36. Rd2 {[%emt 0:01:21]} Qa3 {[%emt 0:
00:22]} 37. Rdd1 {[%emt 0:00:15] Against Rc1} Rc2 {[%emt 0:01:13]} 38. Rg1 {
[%emt 0:00:56]} Rac8 {[%emt 0:00:40] Threatens to win with ...Rc1.} 39. Nd4 {
[%emt 0:00:32] [#]} Rxg2 $1 {[%emt 0:01:17]} 40. Rxg2 {[%emt 0:00:44][%csl Gg2]
[%cal Rg4g7]} Rc1+ $4 {[%emt 0:00:36]} (40... Bxg2+ $19 41. Kxg2 Qb2+ 42. Kg3
Re8) 41. Kh2 $18 {[%emt 0:30:17][%csl Gg2][%cal Rg4g7]} Bxg2 {[%emt 0:03:20] 
[#]} 42. Qxe6+ {[%emt 0:00:00]} (42. Nxe6 $1 $18 {[%csl Ge6][%cal Rg4g7]} Rc7
43. Nxc7) 42... Kh7 $11 {[%emt 0:00:00]} ({Don't play} 42... Kh8 43. Rxa2 Qf8
44. Qf5 (44. Kxg2 Qf1+ 45. Kg3 Qg1+ 46. Kf3 Rf1+ 47. Ke4 Qh1+ 48. Ke3 Rf8 $18)
(44. Rxg2 Qf4+ 45. Rg3 Qf2+ 46. Rg2 Qf4+ 47. Rg3 Qf2+ 48. Rg2 Qf4+ $11) 44...
Qxf5 45. Nxf5 $16) 43. Rxa2 {[%emt 0:00:00] Chess con chili.} Qf8 {[%emt 0:00:
06]} 44. Qf5+ {[%emt 0:00:00]} Qxf5 {[%emt 0:00:03]} 45. Nxf5 {[%emt 0:00:00]
Endgame KRB-KRN} Bd5 {[%emt 0:01:04]} 46. Ra5 {[%emt 0:00:00]} Rh1+ $1 {
[%emt 0:07:18]} 47. Kg3 {[%emt 0:00:00]} Be6 {[%emt 0:00:05] The position is
equal.} 48. Nd4 {[%emt 0:00:00]} Rxh3+ {[%emt 0:01:28]} 49. Kf2 {[%emt 0:00:00]
} Bg4 {[%emt 0:00:54]} 50. e6 {[%emt 0:00:00] Black must now prevent e7.} Kg6 {
[%emt 0:08:34]} 51. e7 {[%emt 0:00:00]} Bd7 {[%emt 0:04:30]} 52. Ra8 {[%emt 0:
00:00]} Kf7 {[%emt 0:00:00] [#]} 53. Nf5 $1 {[%emt 0:00:00]} Rf3+ {[%emt 0:02:
04]} 54. Kxf3 {[%emt 0:00:00] White wants to mate with Rf8+.} Bc6+ {[%emt 0:00:
00]} 55. Kf4 {[%emt 0:00:00] Rf8+ would kill now.} Bxa8 {[%emt 0:00:01] [#]}
56. Nxg7 $1 {[%emt 0:00:00]} Kxe7 {[%emt 0:00:08] KB-KN} (56... Bc6 57. Nf5)
57. Nf5+ {[%emt 0:00:00]} Ke6 {[%emt 0:00:37]} 58. Nxh6 {[%emt 0:00:00]} Bd5 {
[%emt 0:01:01]} 59. Ng4 {[%emt 0:00:00]} Bb3 {[%emt 0:00:35]} 60. Ke3 {[%emt 0:
00:00]} Bc2 {[%emt 0:00:00]} 61. d4 {[%emt 0:00:00]} Kd5 {[%emt 0:00:59]} 62.
Nf6+ {[%emt 0:00:00]} Ke6 {[%emt 0:00:05]} 63. Nh5 {[%emt 0:00:00]} Kd6 {
[%emt 0:00:09]} 64. Nf4 {[%emt 0:00:00]} Bb3 {[%emt 0:00:07]} 65. Kd2 {[%emt 0:
00:10]} Bf7 {[%emt 0:00:00]} 66. Kc3 {[%emt 0:00:11]} Bg8 {[%emt 0:00:12]} 67.
Ng6 {[%emt 0:00:23]} Bd5 {[%emt 0:00:05]} 68. Ne5 {[%emt 0:00:05]} Be6 {
[%emt 0:00:12]} 69. Nf3 {[%emt 0:00:26]} Bd5 {[%emt 0:00:05]} 70. Ng5 {[%emt 0:
00:08]} Kc6 {[%emt 0:00:00]} 71. Kd3 {[%emt 0:00:14]} Kd6 {[%emt 0:00:06]} 72.
Ke3 {[%emt 0:00:02]} Kc6 {[%emt 0:00:21]} 73. Kf4 {[%emt 0:00:04]} Kd6 {
[%emt 0:00:03]} 74. Ne4+ {[%emt 0:00:22]} Bxe4 {[%emt 0:00:08]} 75. Kxe4 {
[%emt 0:00:02] KP-K} Ke6 {[%emt 0:00:03]} 76. d5+ {[%emt 0:00:03]} Kd6 {
[%emt 0:00:03]} 77. Kd4 {[%emt 0:00:00]} Kd7 {[%emt 0:00:03]} 78. Ke5 {[%emt 0:
00:03]} Ke7 {[%emt 0:00:03]} 79. d6+ {[%emt 0:00:02]} Kd7 {[%emt 0:00:03]} 80.
Kd5 {[%emt 0:00:02]} Kd8 {[%emt 0:00:04]} 81. Kc6 {[%emt 0:00:02] White
threatens d7 and mate.} Kc8 {[%emt 0:00:04]} 82. d7+ {[%emt 0:00:02]} Kd8 {
[%emt 0:00:04]} 83. Kd6 {[%emt 0:00:00] Weighted Error Value: White=0.47/
Black=0.16 (very precise)} 1/2-1/2